[Event "Titled Tuesday Blitz March 28 Early 2023"]
[White "Balla, Tamas-Kristof"]
[Black "Sankalan Shah"]
[WhiteFideId "1208497"]
[BlackFideId "25600362"]
[WhiteElo "2334"]
[BlackElo "2118"]
[Result "0-1"]
[Round "03"]
[TimeControl "180+2"]
[Date "2023.03.28"]
[WhiteClock "0:00:06"]
[BlackClock "0:01:18"]

1. e4 {[%clk 0:02:58]}  e5 {[%clk 0:02:59]} 2. Nf3 {[%clk 0:02:57]}  Nc6 {[%clk 0:02:59]} 3. d4 {[%clk 0:02:57]}  exd4 {[%clk 0:02:59]} 4. Nxd4 {[%clk 0:02:58]}  Bc5 {[%clk 0:02:58]} 5. Nb3 {[%clk 0:02:58]}  Bb6 {[%clk 0:02:59]} 6. Nc3 {[%clk 0:02:57]}  d6 {[%clk 0:02:56]} 7. Qe2 {[%clk 0:02:57]}  Qf6 {[%clk 0:02:55]} 8. Be3 {[%clk 0:02:55]}  Nge7 {[%clk 0:02:54]} 9. O-O-O {[%clk 0:02:54]}  Be6 {[%clk 0:02:46]} 10. g3 {[%clk 0:02:47]}  Ne5 {[%clk 0:02:40]} 11. Bg2 {[%clk 0:02:40]}  Bg4 {[%clk 0:02:33]} 12. Qb5+ {[%clk 0:01:58]}  c6 {[%clk 0:02:27]} 13. Qa4 {[%clk 0:01:54]}  Bxe3+ {[%clk 0:02:26]} 14. fxe3 {[%clk 0:01:52]}  Bxd1 {[%clk 0:02:27]} 15. Rxd1 {[%clk 0:01:37]}  O-O {[%clk 0:02:26]} 16. Nd4 {[%clk 0:01:29]}  b5 {[%clk 0:02:22]} 17. Qa6 {[%clk 0:01:24]}  Qh6 {[%clk 0:02:18]} 18. Nf5 {[%clk 0:00:45]}  Nxf5 {[%clk 0:02:09]} 19. exf5 {[%clk 0:00:46]}  Qxe3+ {[%clk 0:02:09]} 20. Kb1 {[%clk 0:00:46]}  d5 {[%clk 0:02:05]} 21. f6 {[%clk 0:00:40]}  g6 {[%clk 0:02:00]} 22. Qa3 {[%clk 0:00:35]}  a5 {[%clk 0:01:56]} 23. Qe7 {[%clk 0:00:33]}  Rae8 {[%clk 0:01:51]} 24. Qb7 {[%clk 0:00:22]}  b4 {[%clk 0:01:46]} 25. Nxd5 {[%clk 0:00:19]}  cxd5 {[%clk 0:01:46]} 26. Bxd5 {[%clk 0:00:19]}  Qf2 {[%clk 0:01:34]} 27. Qa6 {[%clk 0:00:08]}  Ng4 {[%clk 0:01:26]} 28. Rc1 {[%clk 0:00:06]}  Qxf6 {[%clk 0:01:25]} 29. Qxa5 {[%clk 0:00:06]}  Re5 {[%clk 0:01:18]} 0-1


[Site "https://www.chess.com"]

[Event "Titled Tuesday Blitz March 28 Early 2023"]
[White "Ramirez, Maria Eugenia"]
[Black "Balague Camps, Marc"]
[WhiteFideId "3301680"]
[BlackFideId "2297914"]
[WhiteElo "1842"]
[BlackElo "2089"]
[Result "1/2-1/2"]
[Round "03"]
[TimeControl "180+2"]
[Date "2023.03.28"]
[WhiteClock "0:00:32"]
[BlackClock "0:01:06"]

1. e4 {[%clk 0:03:00]}  c5 {[%clk 0:02:59]} 2. c3 {[%clk 0:03:00]}  Nf6 {[%clk 0:02:59]} 3. e5 {[%clk 0:03:00]}  Nd5 {[%clk 0:03:00]} 4. g3 {[%clk 0:03:01]}  Qc7 {[%clk 0:02:58]} 5. Nf3 {[%clk 0:02:55]}  Nc6 {[%clk 0:02:58]} 6. Qe2 {[%clk 0:02:52]}  e6 {[%clk 0:02:57]} 7. Bg2 {[%clk 0:02:51]}  d6 {[%clk 0:02:58]} 8. exd6 {[%clk 0:02:50]}  Bxd6 {[%clk 0:02:59]} 9. O-O {[%clk 0:02:50]}  O-O {[%clk 0:02:59]} 10. d3 {[%clk 0:02:48]}  b6 {[%clk 0:02:59]} 11. Nbd2 {[%clk 0:02:44]}  Bb7 {[%clk 0:02:53]} 12. Ne4 {[%clk 0:02:44]}  Be7 {[%clk 0:02:54]} 13. c4 {[%clk 0:02:43]}  Nf6 {[%clk 0:02:49]} 14. Bd2 {[%clk 0:02:37]}  Rad8 {[%clk 0:02:47]} 15. Bc3 {[%clk 0:02:36]}  e5 {[%clk 0:02:38]} 16. Rfe1 {[%clk 0:02:30]}  Rfe8 {[%clk 0:02:33]} 17. a3 {[%clk 0:02:22]}  h6 {[%clk 0:02:33]} 18. Rad1 {[%clk 0:02:20]}  Nd4 {[%clk 0:02:30]} 19. Bxd4 {[%clk 0:02:17]}  cxd4 {[%clk 0:02:24]} 20. Ned2 {[%clk 0:02:09]}  e4 {[%clk 0:02:12]} 21. Nxe4 {[%clk 0:02:08]}  Nxe4 {[%clk 0:02:07]} 22. dxe4 {[%clk 0:02:07]}  a5 {[%clk 0:02:03]} 23. Qd3 {[%clk 0:02:06]}  Ba6 {[%clk 0:01:59]} 24. Nxd4 {[%clk 0:01:52]}  Bc5 {[%clk 0:01:58]} 25. Qc3 {[%clk 0:01:44]}  Bxd4 {[%clk 0:01:51]} 26. Rxd4 {[%clk 0:01:43]}  Rxd4 {[%clk 0:01:51]} 27. Qxd4 {[%clk 0:01:42]}  Rd8 {[%clk 0:01:49]} 28. Qc3 {[%clk 0:01:38]}  Qxc4 {[%clk 0:01:48]} 29. Qxc4 {[%clk 0:01:31]}  Bxc4 {[%clk 0:01:49]} 30. Rc1 {[%clk 0:01:29]}  b5 {[%clk 0:01:48]} 31. Bf1 {[%clk 0:01:27]}  Bxf1 {[%clk 0:01:46]} 32. Kxf1 {[%clk 0:01:27]}  Rd2 {[%clk 0:01:43]} 33. Rb1 {[%clk 0:01:16]}  Kf8 {[%clk 0:01:43]} 34. Ke1 {[%clk 0:01:15]}  Rc2 {[%clk 0:01:43]} 35. h3 {[%clk 0:01:12]}  Ke7 {[%clk 0:01:43]} 36. b4 {[%clk 0:01:09]}  a4 {[%clk 0:01:42]} 37. Rd1 {[%clk 0:01:07]}  Rc3 {[%clk 0:01:36]} 38. Rd5 {[%clk 0:01:04]}  Rxa3 {[%clk 0:01:36]} 39. Rxb5 {[%clk 0:01:04]}  Ra2 {[%clk 0:01:35]} 40. Ra5 {[%clk 0:01:01]}  Kf6 {[%clk 0:01:34]} 41. f4 {[%clk 0:00:59]}  g5 {[%clk 0:01:33]} 42. Ra6+ {[%clk 0:00:58]}  Kg7 {[%clk 0:01:33]} 43. f5 {[%clk 0:00:56]}  a3 {[%clk 0:01:31]} 44. b5 {[%clk 0:00:55]}  Rb2 {[%clk 0:01:29]} 45. Rxa3 {[%clk 0:00:53]}  Rxb5 {[%clk 0:01:30]} 46. Re3 {[%clk 0:00:53]}  Kf6 {[%clk 0:01:30]} 47. Kf2 {[%clk 0:00:52]}  Ke5 {[%clk 0:01:30]} 48. Kf3 {[%clk 0:00:51]}  h5 {[%clk 0:01:25]} 49. Rc3 {[%clk 0:00:43]}  Ra5 {[%clk 0:01:21]} 50. h4 {[%clk 0:00:36]}  f6 {[%clk 0:01:13]} 51. hxg5 {[%clk 0:00:35]}  fxg5 {[%clk 0:01:14]} 52. Ke3 {[%clk 0:00:34]}  Rb5 {[%clk 0:01:10]} 53. Kf3 {[%clk 0:00:34]}  Ra5 {[%clk 0:01:10]} 54. Ke3 {[%clk 0:00:33]}  h4 {[%clk 0:01:06]} 55. gxh4 {[%clk 0:00:33]}  gxh4 {[%clk 0:01:07]} 56. Kf3 {[%clk 0:00:33]}  h3 {[%clk 0:01:07]} 57. Kg3 {[%clk 0:00:33]}  Kxe4 {[%clk 0:01:07]} 58. Kxh3 {[%clk 0:00:32]}  Rxf5 {[%clk 0:01:06]} 59. Rg3 {[%clk 0:00:32]}  Rf3 {[%clk 0:01:05]} 60. Rxf3 {[%clk 0:00:32]}  Kxf3 {[%clk 0:01:06]} 1/2-1/2


[Site "https://www.chess.com"]

[Event "Titled Tuesday Blitz March 28 Early 2023"]
[White "Kornyukov, Alexey"]
[Black "Harriott, Tyrell"]
[WhiteFideId "4150457"]
[BlackFideId "2086484"]
[WhiteElo "2352"]
[BlackElo "2107"]
[Result "0-1"]
[Round "03"]
[TimeControl "180+2"]
[Date "2023.03.28"]
[WhiteClock "0:01:30"]
[BlackClock "0:02:14"]

1. e4 {[%clk 0:02:57]}  e6 {[%clk 0:02:59]} 2. d4 {[%clk 0:02:57]}  b6 {[%clk 0:02:57]} 3. Nf3 {[%clk 0:02:52]}  Bb7 {[%clk 0:02:58]} 4. Nc3 {[%clk 0:02:51]}  Bb4 {[%clk 0:02:56]} 5. Bd3 {[%clk 0:02:50]}  Nf6 {[%clk 0:02:55]} 6. Bg5 {[%clk 0:02:47]}  h6 {[%clk 0:02:55]} 7. Bxf6 {[%clk 0:02:42]}  Qxf6 {[%clk 0:02:54]} 8. O-O {[%clk 0:02:40]}  g5 {[%clk 0:02:51]} 9. e5 {[%clk 0:02:36]}  Qg7 {[%clk 0:02:37]} 10. Ne4 {[%clk 0:02:25]}  Be7 {[%clk 0:02:36]} 11. Ng3 {[%clk 0:02:18]}  h5 {[%clk 0:02:35]} 12. Be4 {[%clk 0:02:15]}  Nc6 {[%clk 0:02:34]} 13. d5 {[%clk 0:02:11]}  exd5 {[%clk 0:02:29]} 14. Bxd5 {[%clk 0:02:08]}  O-O-O {[%clk 0:02:27]} 15. Nf5 {[%clk 0:01:51]}  Qf8 {[%clk 0:02:26]} 16. N3d4 {[%clk 0:01:36]}  Bc5 {[%clk 0:02:16]} 17. Nxc6 {[%clk 0:01:30]}  dxc6 {[%clk 0:02:14]} 0-1


[Site "https://www.chess.com"]

[Event "Titled Tuesday Blitz March 28 Early 2023"]
[White "Sanchez, Robert"]
[Black "Pasti, Aron"]
[WhiteFideId "2034360"]
[BlackFideId "785857"]
[WhiteElo "2145"]
[BlackElo "2173"]
[Result "0-1"]
[Round "03"]
[TimeControl "180+2"]
[Date "2023.03.28"]
[WhiteClock "0:01:49"]
[BlackClock "0:02:04"]

1. e4 {[%clk 0:03:00]}  e5 {[%clk 0:03:00]} 2. Nf3 {[%clk 0:02:44]}  Nc6 {[%clk 0:03:00]} 3. Bb5 {[%clk 0:02:34]}  a6 {[%clk 0:03:00]} 4. Ba4 {[%clk 0:02:31]}  Nf6 {[%clk 0:03:00]} 5. d3 {[%clk 0:02:31]}  b5 {[%clk 0:02:59]} 6. Bb3 {[%clk 0:02:31]}  Be7 {[%clk 0:02:59]} 7. O-O {[%clk 0:02:31]}  d6 {[%clk 0:03:00]} 8. c3 {[%clk 0:02:32]}  Bg4 {[%clk 0:03:00]} 9. Re1 {[%clk 0:02:32]}  O-O {[%clk 0:03:00]} 10. Nbd2 {[%clk 0:02:32]}  Re8 {[%clk 0:02:55]} 11. Nf1 {[%clk 0:02:28]}  Bf8 {[%clk 0:02:54]} 12. Ng3 {[%clk 0:02:27]}  d5 {[%clk 0:02:49]} 13. exd5 {[%clk 0:02:23]}  Nxd5 {[%clk 0:02:50]} 14. h3 {[%clk 0:02:23]}  Bc8 {[%clk 0:02:42]} 15. Ng5 {[%clk 0:02:18]}  h6 {[%clk 0:02:34]} 16. Nxf7 {[%clk 0:02:16]}  Kxf7 {[%clk 0:02:30]} 17. Qf3+ {[%clk 0:02:11]}  Ke6 {[%clk 0:02:21]} 18. d4 {[%clk 0:02:04]}  a5 {[%clk 0:02:16]} 19. Bf4 {[%clk 0:01:53]}  Bb7 {[%clk 0:02:04]} 20. Bxe5 {[%clk 0:01:49]} 0-1


[Site "https://www.chess.com"]

[Event "Titled Tuesday Blitz March 28 Early 2023"]
[White "Chemin, Justo Reinaldo"]
[Black "Tarasova, Viktoriya"]
[WhiteFideId "2101580"]
[BlackFideId "4175840"]
[WhiteElo "1940"]
[BlackElo "2182"]
[Result "0-1"]
[Round "03"]
[TimeControl "180+2"]
[Date "2023.03.28"]
[WhiteClock "0:00:06"]
[BlackClock "0:00:50"]

1. d4 {[%clk 0:03:00]}  Nf6 {[%clk 0:02:59]} 2. Nf3 {[%clk 0:02:59]}  e6 {[%clk 0:02:58]} 3. Bf4 {[%clk 0:02:58]}  d5 {[%clk 0:02:57]} 4. e3 {[%clk 0:02:58]}  c5 {[%clk 0:02:57]} 5. Nbd2 {[%clk 0:02:56]}  Bd6 {[%clk 0:02:56]} 6. Bg3 {[%clk 0:02:54]}  Qc7 {[%clk 0:02:56]} 7. c3 {[%clk 0:02:42]}  Nbd7 {[%clk 0:02:54]} 8. Bd3 {[%clk 0:02:42]}  b6 {[%clk 0:02:53]} 9. Qe2 {[%clk 0:02:37]}  Bb7 {[%clk 0:02:53]} 10. O-O {[%clk 0:02:33]}  O-O {[%clk 0:02:46]} 11. Rfe1 {[%clk 0:02:31]}  Ne4 {[%clk 0:02:43]} 12. Bxe4 {[%clk 0:02:26]}  dxe4 {[%clk 0:02:41]} 13. Ng5 {[%clk 0:02:25]}  Nf6 {[%clk 0:02:34]} 14. dxc5 {[%clk 0:02:18]}  Qxc5 {[%clk 0:02:26]} 15. Bxd6 {[%clk 0:02:05]}  Qxd6 {[%clk 0:02:26]} 16. Rad1 {[%clk 0:02:02]}  Qc5 {[%clk 0:02:22]} 17. Nh3 {[%clk 0:01:55]}  Rfd8 {[%clk 0:02:16]} 18. Nb3 {[%clk 0:01:54]}  Qc7 {[%clk 0:02:15]} 19. Nd4 {[%clk 0:01:52]}  Bd5 {[%clk 0:02:05]} 20. a3 {[%clk 0:01:49]}  Bc4 {[%clk 0:02:04]} 21. Qc2 {[%clk 0:01:48]}  g6 {[%clk 0:01:55]} 22. Rd2 {[%clk 0:01:42]}  Rd7 {[%clk 0:01:48]} 23. Red1 {[%clk 0:01:41]}  Rad8 {[%clk 0:01:48]} 24. b3 {[%clk 0:01:17]}  Bd3 {[%clk 0:01:47]} 25. Qb2 {[%clk 0:01:14]}  b5 {[%clk 0:01:41]} 26. Nf4 {[%clk 0:01:08]}  e5 {[%clk 0:01:39]} 27. Nxd3 {[%clk 0:01:08]}  exd4 {[%clk 0:01:34]} 28. cxd4 {[%clk 0:00:49]}  exd3 {[%clk 0:01:33]} 29. Rxd3 {[%clk 0:00:50]}  Rc8 {[%clk 0:01:20]} 30. h3 {[%clk 0:00:39]}  Nd5 {[%clk 0:01:17]} 31. e4 {[%clk 0:00:35]}  Nf4 {[%clk 0:01:17]} 32. R3d2 {[%clk 0:00:35]}  Qc3 {[%clk 0:01:14]} 33. d5 {[%clk 0:00:31]}  Qxb2 {[%clk 0:01:08]} 34. Rxb2 {[%clk 0:00:31]}  Rc3 {[%clk 0:01:08]} 35. Rd4 {[%clk 0:00:19]}  Nd3 {[%clk 0:01:03]} 36. Rd2 {[%clk 0:00:16]}  Nc5 {[%clk 0:01:02]} 37. e5 {[%clk 0:00:15]}  Nxb3 {[%clk 0:01:01]} 38. e6 {[%clk 0:00:14]}  fxe6 {[%clk 0:00:58]} 39. R2d3 {[%clk 0:00:07]}  Nxd4 {[%clk 0:00:51]} 40. Rxd4 {[%clk 0:00:06]}  Rxd5 {[%clk 0:00:50]} 0-1


[Site "https://www.chess.com"]

[Event "Titled Tuesday Blitz March 28 Early 2023"]
[White "Levine, David"]
[Black "Meunier-Pion, Jean"]
[WhiteFideId "2011611"]
[BlackFideId "20685327"]
[WhiteElo "2111"]
[BlackElo "2124"]
[Result "0-1"]
[Round "03"]
[TimeControl "180+2"]
[Date "2023.03.28"]
[WhiteClock "0:00:21"]
[BlackClock "0:00:29"]

1. d4 {[%clk 0:02:59]}  d5 {[%clk 0:02:52]} 2. c4 {[%clk 0:02:58]}  c6 {[%clk 0:02:53]} 3. Nf3 {[%clk 0:02:58]}  Nf6 {[%clk 0:02:53]} 4. Nc3 {[%clk 0:02:57]}  a6 {[%clk 0:02:53]} 5. cxd5 {[%clk 0:02:50]}  cxd5 {[%clk 0:02:52]} 6. Bf4 {[%clk 0:02:50]}  Nc6 {[%clk 0:02:52]} 7. e3 {[%clk 0:02:49]}  Bf5 {[%clk 0:02:43]} 8. Bd3 {[%clk 0:02:49]}  Bxd3 {[%clk 0:02:41]} 9. Qxd3 {[%clk 0:02:49]}  e6 {[%clk 0:02:41]} 10. h3 {[%clk 0:02:47]}  Bd6 {[%clk 0:02:35]} 11. O-O {[%clk 0:02:46]}  Bxf4 {[%clk 0:02:35]} 12. exf4 {[%clk 0:02:46]}  O-O {[%clk 0:02:33]} 13. Ne5 {[%clk 0:02:46]}  Rc8 {[%clk 0:02:30]} 14. f5 {[%clk 0:02:43]}  exf5 {[%clk 0:02:15]} 15. Nxc6 {[%clk 0:02:41]}  bxc6 {[%clk 0:02:13]} 16. Qxf5 {[%clk 0:02:41]}  Qb6 {[%clk 0:02:13]} 17. Qd3 {[%clk 0:02:28]}  Qxb2 {[%clk 0:02:00]} 18. Rab1 {[%clk 0:02:21]}  Qa3 {[%clk 0:01:58]} 19. Rb3 {[%clk 0:02:14]}  Qa5 {[%clk 0:01:47]} 20. Rfb1 {[%clk 0:02:06]}  c5 {[%clk 0:01:29]} 21. dxc5 {[%clk 0:02:01]}  Rxc5 {[%clk 0:01:23]} 22. Ne2 {[%clk 0:01:15]}  Ne4 {[%clk 0:01:03]} 23. Ra3 {[%clk 0:01:13]}  Qc7 {[%clk 0:00:59]} 24. Qxa6 {[%clk 0:01:00]}  h6 {[%clk 0:00:47]} 25. Qd3 {[%clk 0:00:57]}  Rd8 {[%clk 0:00:46]} 26. Nd4 {[%clk 0:00:54]}  Qf4 {[%clk 0:00:39]} 27. Nf3 {[%clk 0:00:41]}  Rc1+ {[%clk 0:00:37]} 28. Rxc1 {[%clk 0:00:39]}  Qxc1+ {[%clk 0:00:37]} 29. Kh2 {[%clk 0:00:39]}  Nxf2 {[%clk 0:00:33]} 30. Qe3 {[%clk 0:00:32]}  Qh1+ {[%clk 0:00:28]} 31. Kg3 {[%clk 0:00:32]}  Ne4+ {[%clk 0:00:29]} 32. Kh4 {[%clk 0:00:28]}  Qxg2 {[%clk 0:00:29]} 33. Qf4 {[%clk 0:00:22]}  g5+ {[%clk 0:00:29]} 34. Nxg5 {[%clk 0:00:21]}  hxg5+ {[%clk 0:00:29]} 0-1


[Site "https://www.chess.com"]

[Event "Titled Tuesday Blitz March 28 Early 2023"]
[White "Michalski, Olaf"]
[Black "Vedder, Richard"]
[WhiteFideId "1106740"]
[BlackFideId "1004166"]
[WhiteElo "2173"]
[BlackElo "2168"]
[Result "0-1"]
[Round "03"]
[TimeControl "180+2"]
[Date "2023.03.28"]
[WhiteClock "0:00:05"]
[BlackClock "0:01:43"]

1. d4 {[%clk 0:02:57]}  d5 {[%clk 0:02:59]} 2. c4 {[%clk 0:02:56]}  dxc4 {[%clk 0:03:00]} 3. Nf3 {[%clk 0:02:54]}  Nf6 {[%clk 0:02:59]} 4. e3 {[%clk 0:02:54]}  e6 {[%clk 0:02:59]} 5. Bxc4 {[%clk 0:02:53]}  c5 {[%clk 0:03:00]} 6. O-O {[%clk 0:02:49]}  Nc6 {[%clk 0:03:00]} 7. Qe2 {[%clk 0:02:38]}  cxd4 {[%clk 0:02:59]} 8. Rd1 {[%clk 0:02:39]}  Be7 {[%clk 0:03:00]} 9. Nxd4 {[%clk 0:02:23]}  Nxd4 {[%clk 0:02:59]} 10. Rxd4 {[%clk 0:02:17]}  Bd7 {[%clk 0:02:54]} 11. e4 {[%clk 0:02:03]}  e5 {[%clk 0:02:47]} 12. Rd3 {[%clk 0:01:33]}  Rc8 {[%clk 0:02:45]} 13. Nd2 {[%clk 0:00:51]}  O-O {[%clk 0:02:39]} 14. a3 {[%clk 0:00:29]}  Qb6 {[%clk 0:02:25]} 15. b4 {[%clk 0:00:22]}  Bg4 {[%clk 0:02:23]} 16. Qe1 {[%clk 0:00:11]}  Rfd8 {[%clk 0:02:18]} 17. Rxd8+ {[%clk 0:00:08]}  Qxd8 {[%clk 0:02:10]} 18. Bb2 {[%clk 0:00:07]}  Bd6 {[%clk 0:01:56]} 19. f3 {[%clk 0:00:07]}  Bd7 {[%clk 0:01:55]} 20. Rd1 {[%clk 0:00:06]}  Qe7 {[%clk 0:01:54]} 21. Qe2 {[%clk 0:00:05]}  Nh5 {[%clk 0:01:49]} 22. g3 {[%clk 0:00:05]}  a5 {[%clk 0:01:43]} 0-1


[Site "https://www.chess.com"]

[Event "Titled Tuesday Blitz March 28 Early 2023"]
[White "Topalov, Aleksandar"]
[Black "Kriti Mayur Patel"]
[WhiteFideId "925659"]
[BlackFideId "35061780"]
[WhiteElo "2151"]
[BlackElo "1306"]
[Result "1-0"]
[Round "03"]
[TimeControl "180+2"]
[Date "2023.03.28"]
[WhiteClock "0:01:09"]
[BlackClock "0:00:24"]

1. b3 {[%clk 0:03:00]}  d5 {[%clk 0:02:57]} 2. Bb2 {[%clk 0:03:01]}  c5 {[%clk 0:02:57]} 3. e3 {[%clk 0:03:00]}  Nc6 {[%clk 0:02:58]} 4. Bb5 {[%clk 0:03:00]}  a6 {[%clk 0:02:57]} 5. Bxc6+ {[%clk 0:03:00]}  bxc6 {[%clk 0:02:57]} 6. f4 {[%clk 0:03:00]}  Bf5 {[%clk 0:02:56]} 7. Nf3 {[%clk 0:02:59]}  e6 {[%clk 0:02:56]} 8. d3 {[%clk 0:03:00]}  Nf6 {[%clk 0:02:56]} 9. Nbd2 {[%clk 0:03:00]}  Bd6 {[%clk 0:02:52]} 10. O-O {[%clk 0:02:59]}  O-O {[%clk 0:02:51]} 11. Qe2 {[%clk 0:02:59]}  Rb8 {[%clk 0:02:44]} 12. e4 {[%clk 0:02:58]}  dxe4 {[%clk 0:02:42]} 13. dxe4 {[%clk 0:02:58]}  Bg4 {[%clk 0:02:42]} 14. e5 {[%clk 0:02:58]}  Nd5 {[%clk 0:02:35]} 15. exd6 {[%clk 0:02:57]}  Nxf4 {[%clk 0:02:35]} 16. Qe5 {[%clk 0:02:53]}  Nh5 {[%clk 0:02:17]} 17. h3 {[%clk 0:02:46]}  Bxf3 {[%clk 0:02:14]} 18. Rxf3 {[%clk 0:02:45]}  c4 {[%clk 0:01:59]} 19. Qxh5 {[%clk 0:02:41]}  Qxd6 {[%clk 0:01:54]} 20. Qg5 {[%clk 0:02:29]}  f6 {[%clk 0:01:45]} 21. Rxf6 {[%clk 0:02:25]}  Rxf6 {[%clk 0:01:20]} 22. Bxf6 {[%clk 0:02:24]}  Rb7 {[%clk 0:01:21]} 23. Ne4 {[%clk 0:02:19]}  Qb4 {[%clk 0:01:12]} 24. Rf1 {[%clk 0:02:12]}  cxb3 {[%clk 0:01:11]} 25. Bxg7 {[%clk 0:02:05]}  Qb6+ {[%clk 0:00:55]} 26. Kh1 {[%clk 0:01:54]}  Rxg7 {[%clk 0:00:54]} 27. Qf6 {[%clk 0:01:41]}  Qb8 {[%clk 0:00:31]} 28. Qxe6+ {[%clk 0:01:33]}  Kh8 {[%clk 0:00:31]} 29. axb3 {[%clk 0:01:31]}  Qg8 {[%clk 0:00:30]} 30. Qxg8+ {[%clk 0:01:29]}  Rxg8 {[%clk 0:00:31]} 31. Rf6 {[%clk 0:01:26]}  Rd8 {[%clk 0:00:30]} 32. Rxc6 {[%clk 0:01:23]}  a5 {[%clk 0:00:30]} 33. Rc5 {[%clk 0:01:19]}  a4 {[%clk 0:00:30]} 34. bxa4 {[%clk 0:01:19]}  Rd4 {[%clk 0:00:31]} 35. Nc3 {[%clk 0:01:14]}  h5 {[%clk 0:00:29]} 36. a5 {[%clk 0:01:14]}  Kg7 {[%clk 0:00:29]} 37. a6 {[%clk 0:01:14]}  Kg6 {[%clk 0:00:28]} 38. a7 {[%clk 0:01:14]}  Rd8 {[%clk 0:00:27]} 39. Ra5 {[%clk 0:01:14]}  Ra8 {[%clk 0:00:27]} 40. Nb5 {[%clk 0:01:14]}  h4 {[%clk 0:00:28]} 41. Nc7 {[%clk 0:01:14]}  Rd8 {[%clk 0:00:25]} 42. a8=Q {[%clk 0:01:13]}  Rd1+ {[%clk 0:00:26]} 43. Kh2 {[%clk 0:01:12]}  Kh6 {[%clk 0:00:26]} 44. Qa6+ {[%clk 0:01:10]}  Kg7 {[%clk 0:00:26]} 45. Rg5+ {[%clk 0:01:10]}  Kh7 {[%clk 0:00:25]} 46. Qg6+ {[%clk 0:01:09]}  Kh8 {[%clk 0:00:24]} 47. Qg7# {[%clk 0:01:09]} 1-0


[Site "https://www.chess.com"]

[Event "Titled Tuesday Blitz March 28 Early 2023"]
[White "Maranhao,Jose Renato Ruiz"]
[Black "Lopez, Nelson M, Ii"]
[WhiteFideId "2135175"]
[BlackFideId "2027895"]
[WhiteElo "1970"]
[BlackElo "2400"]
[Result "0-1"]
[Round "03"]
[TimeControl "180+2"]
[Date "2023.03.28"]
[WhiteClock "0:00:02"]
[BlackClock "0:00:09"]

1. e4 {[%clk 0:03:00]}  e5 {[%clk 0:03:00]} 2. d4 {[%clk 0:03:00]}  exd4 {[%clk 0:02:59]} 3. c3 {[%clk 0:03:00]}  d5 {[%clk 0:02:58]} 4. exd5 {[%clk 0:02:59]}  Qxd5 {[%clk 0:02:59]} 5. cxd4 {[%clk 0:02:59]}  Nc6 {[%clk 0:02:58]} 6. Nf3 {[%clk 0:02:59]}  Bg4 {[%clk 0:02:56]} 7. Nc3 {[%clk 0:02:58]}  Bb4 {[%clk 0:02:56]} 8. Be2 {[%clk 0:02:57]}  O-O-O {[%clk 0:02:55]} 9. O-O {[%clk 0:02:56]}  Bxc3 {[%clk 0:02:55]} 10. bxc3 {[%clk 0:02:57]}  Nf6 {[%clk 0:02:55]} 11. h3 {[%clk 0:02:35]}  Bh5 {[%clk 0:02:55]} 12. Ne5 {[%clk 0:02:31]}  Bxe2 {[%clk 0:02:51]} 13. Qxe2 {[%clk 0:02:32]}  Rhe8 {[%clk 0:02:43]} 14. f4 {[%clk 0:02:04]}  Ne4 {[%clk 0:02:41]} 15. c4 {[%clk 0:01:47]}  Nxd4 {[%clk 0:01:03]} 16. Qg4+ {[%clk 0:01:40]}  f5 {[%clk 0:01:00]} 17. cxd5 {[%clk 0:00:44]}  fxg4 {[%clk 0:00:59]} 18. hxg4 {[%clk 0:00:35]}  Rd6 {[%clk 0:00:44]} 19. g5 {[%clk 0:00:18]}  Rxd5 {[%clk 0:00:34]} 20. Bb2 {[%clk 0:00:16]}  Ne2+ {[%clk 0:00:31]} 21. Kh2 {[%clk 0:00:16]}  N4g3 {[%clk 0:00:27]} 22. Rf3 {[%clk 0:00:15]}  Rd2 {[%clk 0:00:24]} 23. Ba3 {[%clk 0:00:09]}  Nf5 {[%clk 0:00:22]} 24. Re1 {[%clk 0:00:07]}  Ned4 {[%clk 0:00:21]} 25. Rc3 {[%clk 0:00:06]}  c6 {[%clk 0:00:20]} 26. Nc4 {[%clk 0:00:05]}  Rxe1 {[%clk 0:00:16]} 27. Nxd2 {[%clk 0:00:05]}  Re2 {[%clk 0:00:12]} 28. Nf3 {[%clk 0:00:04]}  Nb5 {[%clk 0:00:11]} 29. Rb3 {[%clk 0:00:02]}  Nxa3 {[%clk 0:00:10]} 30. Rxa3 {[%clk 0:00:02]}  a6 {[%clk 0:00:11]} 31. Ne5 {[%clk 0:00:01]}  Kc7 {[%clk 0:00:10]} 32. Rd3 {[%clk 0:00:02]}  Nd6 {[%clk 0:00:08]} 33. Nf3 {[%clk 0:00:01]}  Rxa2 {[%clk 0:00:08]} 34. Nd4 {[%clk 0:00:01]}  Nb5 {[%clk 0:00:06]} 35. Ne6+ {[%clk 0:00:01]}  Kb6 {[%clk 0:00:07]} 36. Nxg7 {[%clk 0:00:02]}  c5 {[%clk 0:00:08]} 37. f5 {[%clk 0:00:02]}  c4 {[%clk 0:00:08]} 38. Rd7 {[%clk 0:00:02]}  c3 {[%clk 0:00:08]} 39. Ne6 {[%clk 0:00:02]}  c2 {[%clk 0:00:09]} 0-1


[Site "https://www.chess.com"]

[Event "Titled Tuesday Blitz March 28 Early 2023"]
[White "Sanchez, German"]
[Black "Ramirez Vido, Robert Yorisan"]
[WhiteFideId "4403959"]
[BlackFideId "3513823"]
[WhiteElo "1816"]
[BlackElo "2398"]
[Result "1-0"]
[Round "03"]
[TimeControl "180+2"]
[Date "2023.03.28"]
[WhiteClock "0:00:22"]
[BlackClock "0:00:05"]

1. e4 {[%clk 0:02:55]}  d6 {[%clk 0:02:58]} 2. Nf3 {[%clk 0:02:55]}  Nf6 {[%clk 0:02:59]} 3. d4 {[%clk 0:02:55]}  g6 {[%clk 0:02:59]} 4. Nc3 {[%clk 0:02:56]}  Bg7 {[%clk 0:02:59]} 5. h4 {[%clk 0:02:57]}  c5 {[%clk 0:02:54]} 6. Bc4 {[%clk 0:02:55]}  O-O {[%clk 0:02:33]} 7. h5 {[%clk 0:02:53]}  Nxh5 {[%clk 0:01:58]} 8. Rxh5 {[%clk 0:02:28]}  gxh5 {[%clk 0:01:58]} 9. Ng5 {[%clk 0:02:29]}  Bg4 {[%clk 0:01:28]} 10. f3 {[%clk 0:02:27]}  cxd4 {[%clk 0:01:25]} 11. fxg4 {[%clk 0:01:41]}  dxc3 {[%clk 0:01:24]} 12. b3 {[%clk 0:01:38]}  Nc6 {[%clk 0:01:18]} 13. gxh5 {[%clk 0:01:33]}  Ne5 {[%clk 0:01:18]} 14. h6 {[%clk 0:01:31]}  Bf6 {[%clk 0:00:54]} 15. Qh5 {[%clk 0:01:17]}  Nxc4 {[%clk 0:00:42]} 16. bxc4 {[%clk 0:01:16]}  Qb6 {[%clk 0:00:40]} 17. Ke2 {[%clk 0:01:08]}  Qc5 {[%clk 0:00:34]} 18. Be3 {[%clk 0:01:00]}  Qxc4+ {[%clk 0:00:35]} 19. Kf2 {[%clk 0:01:01]}  Kh8 {[%clk 0:00:16]} 20. Rb1 {[%clk 0:00:51]}  b6 {[%clk 0:00:16]} 21. Rd1 {[%clk 0:00:50]}  Rac8 {[%clk 0:00:16]} 22. Rd5 {[%clk 0:00:47]}  e6 {[%clk 0:00:14]} 23. Nxf7+ {[%clk 0:00:45]}  Rxf7 {[%clk 0:00:06]} 24. Qxf7 {[%clk 0:00:45]}  Bh4+ {[%clk 0:00:06]} 25. g3 {[%clk 0:00:39]}  Bxg3+ {[%clk 0:00:05]} 26. Kxg3 {[%clk 0:00:33]}  Rg8+ {[%clk 0:00:05]} 27. Kf2 {[%clk 0:00:22]} 1-0


[Site "https://www.chess.com"]